[Event "Gibraltar Challengers A 2020"]
[Site "Caleta"]
[Date "2020.01.24"]
[Round "5.26"]
[White "Huguet, Sergio"]
[Black "Burke, Mitchell R"]
[Result "0-1"]
[ECO "A21"]
[WhiteElo "2055"]
[BlackElo "2001"]
[Annotator "NA RC"]
[PlyCount "110"]
[EventDate "2020.01.20"]
[EventType "swiss"]
[EventCountry "GGB"]
[SourceTitle "playchess.com"]
[Source "ChessBase"]
[SourceQuality "1"]
[TimeControl "6600+10"]

1. c4 {[%emt 0:00:00]} g6 {[%emt 0:00:13]} 2. g3 {[%emt 0:00:01]} Bg7 {[%emt 0:00:03]} 3. Bg2 {[%emt 0:00:11]} d6 {[%emt 0:00:05]} 4. Nc3 {[%emt 0:00:26]} e5 {[%emt 0:00:18]} 5. e4 {[%emt 0:00:35]} Ne7 {[%emt 0:00:22]} 6. Nge2 {[%emt 0:01:25]} O-O {[%emt 0:00:07]} 7. O-O {[%emt 0:00:22]} Nd7 {[%emt 0:00:16]} 8. d3 {[%emt 0:01:42]} f5 {[%emt 0:00:09] A21: English Opening: 1...e5 2 Nc3} 9. b4 {[%emt 0:03:50]} (9. Be3 Nf6 10. h3 Be6 11. Nd5 c6 12. Nxf6+ Rxf6 13. b3 Rf7 14. Qd2 d5 15. exd5 cxd5 16. Bg5 {½-½ (46) Gurevich,M (2633)-Milov,V (2638) Bastia 2006}) 9... Nf6 {[%emt 0:00:45]} ({Better is} 9... a5 $15 10. b5 Nc5) 10. f3 $146 {[%emt 0:03:12]} ({Predecessor:} 10. Rb1 Nh5 11. exf5 gxf5 12. f4 exf4 13. gxf4 Ng6 14. d4 {1-0 (26) Turek,M-Dziadon,P Werynia 1997}) 10... c6 {[%emt 0:00:43]} 11. Bg5 {[%emt 0:08:28]} Qb6+ {[%emt 0:04:57]} 12. Kh1 {[%emt 0:05:40]} Qxb4 {[%emt 0:00:39]} 13. Rb1 {[%emt 0:01:32]} Qa5 {[%emt 0:00:06]} 14. Qd2 {[%emt 0:04:13]} Qc7 {[%emt 0:00:41]} 15. d4 {[%emt 0:03:21]} fxe4 {[%emt 0:08:36]} 16. fxe4 {[%emt 0:01:22]} Bg4 {[%emt 0:04:38]} 17. d5 {[%emt 0:01:21]} a6 {[%emt 0:02:09]} 18. h3 {[%emt 0:04:12]} Bxe2 {[%emt 0:00:24]} 19. Nxe2 {[%emt 0:00:51]} Rac8 {[%emt 0:03:50]} 20. Qb4 {[%emt 0:12:12]} cxd5 {[%emt 0:04:17]} 21. cxd5 {[%emt 0:03:37]} b5 {[%emt 0:00:32]} 22. Rbc1 {[%emt 0:02:33]} Qd7 {[%emt 0:04:20]} 23. Qa5 {[%emt 0:11:52]} Qb7 {[%emt 0:00:55]} 24. Rxc8 {[%emt 0:02:07]} Nxc8 {[%emt 0:00:33]} 25. Rc1 {[%emt 0:00:55]} Nd7 {[%emt 0:11:03]} 26. Rc7 {[%emt 0:12:40]} Qb6 {[%emt 0:00:10]} 27. Qc3 {[%emt 0:00:52]} Nc5 {[%emt 0:00:35]} 28. Rc6 {[%emt 0:01:03]} b4 {[%emt 0:07:20]} 29. Qc4 {[%emt 0:05:18]} Qb5 {[%emt 0:00:50]} 30. Qxb5 {[%emt 0:00:40]} axb5 {[%emt 0:00:00]} 31. Be3 {[%emt 0:01:53]} b3 {[%emt 0:03:49]} 32. axb3 {[%emt 0:00:36]} Nxb3 {[%emt 0:00:09]} 33. h4 {[%emt 0:03:47]} Nd4 {[%emt 0:00:40]} 34. Nxd4 {[%emt 0:02:04]} exd4 {[%emt 0:00:01]} 35. Bf4 {[%emt 0:01:03]} Be5 {[%emt 0:06:28]} 36. Bh6 {[%emt 0:01:47]} Re8 {[%emt 0:04:55]} 37. Bh3 {[%emt 0:00:09]} Ne7 {[%emt 0:00:09]} 38. Rc7 {[%emt 0:00:29] [#]} Kh8 $1 {[%emt 0:00:48]} ({But not} 38... Bxg3 $2 39. Bd7 $18) 39. Bd7 {[%emt 0:02:31]} Rb8 {[%emt 0:01:05]} 40. Bf4 {[%emt 0:03:00]} Bxf4 41. gxf4 {[%emt 0:00:02]} b4 {[%emt 0:01:59]} 42. Ba4 $2 {[%emt 0:00:23]} (42. Kg2 {was necessary.} b3 43. Rc1) 42... b3 {[%emt 0:01:59]} 43. Rc1 {[%emt 0:02:27]} d3 {[%emt 0:05:34]} 44. Kg2 {[%emt 0:00:20]} Rb4 {[%emt 0:01:29]} 45. Bd7 {[%emt 0:00:14]} h5 {[%emt 0:00:49]} 46. Kf3 {[%emt 0:00:02]} d2 {[%emt 0:04:18]} 47. Rb1 {[%emt 0:00:04]} Rd4 {[%emt 0:00:49]} 48. Ke2 {[%emt 0:00:10]} b2 $19 {[%emt 0:01:39] Promotion} 49. Kd1 {[%emt 0:00:10]} Rxe4 {[%emt 0:00:55]} 50. Rxb2 {[%emt 0:00:03]} Nxd5 {[%emt 0:02:46]} 51. Rxd2 {[%emt 0:00:25]} Ne3+ {[%emt 0:01:14]} 52. Kc1 {[%emt 0:00:11]} d5 {[%emt 0:00:05]} 53. Kb1 {[%emt 0:00:12]} Rxf4 {[%emt 0:00:33]} 54. Bc6 {[%emt 0:00:13]} d4 {[%emt 0:01:42]} 55. Rh2 {[%emt 0:00:05]} Nf5 {[%emt 0:00:15]} 0-1

[Event "Gibraltar Challengers A 2020"]
[Site "Caleta"]
[Date "2020.01.24"]
[Round "5.27"]
[White "Bujakevich, Aleksandr"]
[Black "Garcia-Blazquez Perez, Manuel"]
[Result "1-0"]
[ECO "B22"]
[WhiteElo "2014"]
[BlackElo "1825"]
[Annotator "NA RC"]
[PlyCount "93"]
[EventDate "2020.01.20"]
[EventType "swiss"]
[EventCountry "GGB"]
[SourceTitle "playchess.com"]
[Source "ChessBase"]
[SourceQuality "1"]
[TimeControl "6600+10"]

{[%evp 16,93,-12,0,-21,-29,32767,-62,0,0,57,47,77,84,68,67,89,32767,32767,32767,32767,32767,32767,32767,32767,32767,32767,32767,32767,32767,32767,32767,32767,32767,32767,32767,32767,32767,32767,32767,32767,32767,32767,32767,32767,32767,32767,32767,32767,32767,32767,32767,32767,136,32767,183,169,150,163,195,159,277,326,397,558,607,508,965,533,683,1162,878,5110,29979,29983,29984,29982,29985,29985,29986]} 1. e4 {[%emt 0:04:08]} c5 {[%emt 0:00:00]} 2. c3 {[%emt 0:00:10]} d5 {[%emt 0:00:11]} 3. exd5 {[%emt 0:00:27]} Qxd5 {[%emt 0:00:06]} 4. d4 {[%emt 0:00:17]} cxd4 {[%emt 0:00:06]} 5. cxd4 {[%emt 0:00:20]} e5 {[%emt 0:00:16]} 6. dxe5 {[%emt 0:04:16]} Qxd1+ {[%emt 0:00:05] B22: Sicilian: 2 c3} 7. Kxd1 {[%emt 0:00:05]} Nc6 {[%emt 0:00:05]} 8. Bb5 {[%emt 0:05:16]} (8. Nf3 Bg4 9. Be2 O-O-O+ 10. Bd2 Bxf3 11. gxf3 Nxe5 12. Kc2 Bc5 13. Be3 Bxe3 14. fxe3 Ne7 15. f4 N5c6 16. Nc3 Nb4+ 17. Kb3 Nbd5 18. Bg4+ Kb8 19. Rhe1 f5 20. Bf3 Nxc3 21. Kxc3 Rd6 {½-½ (21) Jerez Perez,A (2397)-Munoz Pantoja,M (2452) Mollet del Valles 2016}) 8... Bg4+ {[%emt 0:07:37]} 9. f3 {[%emt 0:02:17]} O-O-O+ {[%emt 0:00:06]} 10. Bd2 {[%emt 0:00:38]} Nd4 {[%emt 0:00:27]} 11. Bc4 $146 {[%emt 0:02:35]} ({White should play} 11. fxg4 $14 Nxb5 12. Nf3) ({Predecessor:} 11. Nc3 Be6 12. Nge2 Nf5 13. Nf4 Bc5 14. Nxe6 fxe6 {0-1 (26) Wurzer,G (1845)-Pilz,D (2250) Wattens 1997}) 11... Be6 {[%emt 0:00:18]} ({Better is} 11... Bf5 $1 $15 12. Na3 Kb8) 12. Bxe6+ {[%emt 0:01:02]} fxe6 {[%emt 0:00:27]} (12... Nxe6 $11 13. Ne2 Ne7) 13. Nc3 {[%emt 0:01:38]} Ne7 {[%emt 0:00:33]} 14. Nge2 {[%emt 0:04:37]} Nec6 {[%emt 0:00:09]} 15. Nxd4 {[%emt 0:01:47]} Rxd4 {[%emt 0:00:56]} 16. Re1 {[%emt 0:07:30]} Be7 {[%emt 0:07:53]} 17. f4 {[%emt 0:04:01]} Rhd8 {[%emt 0:00:05]} 18. Re2 {[%emt 0:07:38]} Rxf4 {[%emt 0:00:10]} 19. Rc1 {[%emt 0:06:50]} Rf1+ {[%emt 0:02:29]} 20. Re1 {[%emt 0:00:13]} Rxe1+ {[%emt 0:00:06]} 21. Kxe1 {[%emt 0:00:04]} Kd7 {[%emt 0:00:45]} 22. Bf4 {[%emt 0:01:41]} g5 {[%emt 0:00:34]} 23. Rd1+ {[%emt 0:06:03]} Ke8 {[%emt 0:00:09]} 24. Rxd8+ {[%emt 0:00:16]} Bxd8 {[%emt 0:00:17]} 25. Bg3 {[%emt 0:00:33]} Bc7 {[%emt 0:05:10]} 26. Ne4 {[%emt 0:00:22]} Kf7 {[%emt 0:02:09]} 27. Nxg5+ {[%emt 0:00:40]} Kg6 {[%emt 0:02:59]} 28. Nxe6 {[%emt 0:00:11]} Bxe5 {[%emt 0:00:13]} 29. Bxe5 {[%emt 0:00:59]} Nxe5 {[%emt 0:00:03]} 30. Ke2 {[%emt 0:03:37]} Kf5 {[%emt 0:00:20]} 31. Nc5 {[%emt 0:04:04]} b6 {[%emt 0:00:25]} 32. Nd3 {[%emt 0:00:41]} Ng4 {[%emt 0:01:21]} 33. h3 {[%emt 0:00:37]} Nf6 {[%emt 0:00:07]} 34. Kf3 {[%emt 0:00:47]} h5 {[%emt 0:00:13]} 35. g3 {[%emt 0:01:28]} a5 {[%emt 0:01:00]} 36. Nf4 {[%emt 0:01:30]} Ke5 {[%emt 0:02:24]} 37. Ke3 {[%emt 0:03:25]} b5 {[%emt 0:02:12]} 38. a3 {[%emt 0:04:47]} a4 {[%emt 0:00:26] [#]} 39. Kd3 $1 {[%emt 0:00:44]} Kf5 {[%emt 0:00:39] [#]} 40. Nxh5 $1 {[%emt 0:00:32]} Ne4 {[%emt 0:00:24]} 41. Kd4 {[%emt 0:02:21]} Nf2 {[%emt 0:00:34]} 42. Nf4 {[%emt 0:02:06]} Nd1 {[%emt 0:00:10]} 43. Nd3 {[%emt 0:02:25]} b4 {[%emt 0:02:17]} 44. axb4 {[%emt 0:01:09]} Nxb2 {[%emt 0:00:07]} 45. Nxb2 {[%emt 0:00:20]} a3 {[%emt 0:00:06]} 46. Nc4 {[%emt 0:00:07]} a2 {[%emt 0:00:05]} 47. Ne3+ {[%emt 0:00:05]} 1-0

[Event "Gibraltar Challengers A 2020"]
[Site "Caleta"]
[Date "2020.01.24"]
[Round "5.28"]
[White "Hladik, Lumir"]
[Black "Paul, Nathanael"]
[Result "1/2-1/2"]
[ECO "B19"]
[WhiteElo "2018"]
[BlackElo "1987"]
[Annotator "NA RC"]
[PlyCount "236"]
[EventDate "2020.01.20"]
[EventType "swiss"]
[EventCountry "GGB"]
[SourceTitle "playchess.com"]
[Source "ChessBase"]
[SourceQuality "1"]
[TimeControl "6600+10"]

1. e4 {[%emt 0:00:00]} c6 {[%emt 0:00:00]} 2. d4 {[%emt 0:00:22]} d5 {[%emt 0:00:05]} 3. Nc3 {[%emt 0:00:09]} dxe4 {[%emt 0:00:06]} 4. Nxe4 {[%emt 0:00:10]} Bf5 {[%emt 0:00:14]} 5. Ng3 {[%emt 0:00:12]} Bg6 {[%emt 0:00:04]} 6. Nf3 {[%emt 0:00:13]} Nd7 {[%emt 0:00:11]} 7. h4 {[%emt 0:00:11]} h6 {[%emt 0:00:04]} 8. h5 {[%emt 0:00:08]} Bh7 {[%emt 0:00:03]} 9. Bd3 {[%emt 0:00:08]} Bxd3 {[%emt 0:00:07]} 10. Qxd3 {[%emt 0:00:06]} ({Of course not} 10. cxd3 Ngf6 $15) 10... e6 {[%emt 0:00:13]} 11. Bd2 {[%emt 0:00:25]} Ngf6 {[%emt 0:00:07]} 12. O-O-O {[%emt 0:00:21]} Be7 {[%emt 0:00:04]} 13. c4 {[%emt 0:03:35] B19: Classical Caro-Kann: 4...Bf5 main line} O-O {[%emt 0:00:10]} 14. Kb1 {[%emt 0:00:51]} b5 {[%emt 0:01:02] [#]} 15. Bc1 $146 {[%emt 0:14:58]} ({Predecessor:} 15. cxb5 $11 Qb6 (15... cxb5 16. Qxb5 a5 17. Ne5 Nxe5 18. dxe5 Nd5 19. Ne2 Rb8 20. Qc6 Ba3 {0-1 (31) Ganguly,S (2603)-Jakovenko,D (2737) Motril 2008}) 16. bxc6 Qxc6 17. Rc1) 15... bxc4 {[%emt 0:03:29]} 16. Qxc4 {[%emt 0:00:03]} Nb6 {[%emt 0:00:12]} 17. Qc2 {[%emt 0:01:26]} Qd5 {[%emt 0:00:55]} ({Better is} 17... Nbd5 $17) 18. Rhe1 {[%emt 0:03:48]} Bd6 {[%emt 0:06:04]} 19. Ne5 {[%emt 0:01:35]} Rfc8 {[%emt 0:00:10] [#]} 20. Nxf7 $2 {[%emt 0:01:22]} (20. Bxh6 $1 $16 {[%mdl 512] keeps the pressure on.} gxh6 {[#]} 21. Nxf7 $1 {[%mdl 576] Remove Defender, Decoy} Kxf7 22. Qg6+ {[%mdl 64] Double Attack} Ke7 23. Nf5+ {[%mdl 64] Double Attack} Kd8 24. Qxf6+ {[%mdl 64] Double Attack} (24. Nxd6 Qxd6 25. Qxf6+ {[%mdl 64] Double Attack} Kd7 $11) 24... Kc7 25. Nxd6 (25. Nxh6 Rf8 $17) (25. Qxe6 Rg8 $11) 25... Qxd6 26. Rxe6) 20... Kxf7 {[%emt 0:17:56]} 21. Qg6+ {[%emt 0:00:27]} Kg8 {[%emt 0:00:02]} 22. Bxh6 {[%emt 0:00:32]} Bf8 {[%emt 0:00:28]} 23. Bxg7 {[%emt 0:06:34]} Bxg7 {[%emt 0:00:13]} 24. h6 {[%emt 0:00:25]} Qd7 {[%emt 0:00:48]} 25. Rxe6 {[%emt 0:02:49]} Qf7 {[%emt 0:01:59]} 26. Qxg7+ {[%emt 0:00:25]} Qxg7 {[%emt 0:00:03]} 27. hxg7 {[%emt 0:00:15]} Kxg7 {[%emt 0:00:37]} 28. Rc1 {[%emt 0:01:56]} Nbd5 {[%emt 0:03:03]} 29. Rexc6 {[%emt 0:01:26]} Rxc6 {[%emt 0:00:04]} 30. Rxc6 {[%emt 0:00:19]} Re8 {[%emt 0:01:27]} 31. a3 {[%emt 0:00:28]} Kg6 {[%emt 0:03:07]} 32. Ra6 {[%emt 0:01:53]} Re1+ {[%emt 0:00:33]} 33. Ka2 {[%emt 0:00:23]} Rg1 {[%emt 0:01:45]} 34. Ne4 {[%emt 0:02:08]} Rxg2 {[%emt 0:00:19]} 35. Nxf6 {[%emt 0:01:57]} Nxf6 {[%emt 0:00:02]} 36. Rxa7 {[%emt 0:00:27]} Rxf2 {[%emt 0:00:04]} 37. Rc7 {[%emt 0:01:39]} Kf5 {[%emt 0:01:06]} 38. Re7 {[%emt 0:05:00]} Rd2 {[%emt 0:00:48]} 39. Re5+ {[%emt 0:00:28]} Kf4 {[%emt 0:00:02]} 40. Re1 {[%emt 0:02:59]} Rxd4 {[%emt 0:00:35]} 41. Rf1+ {[%emt 0:00:45]} Ke5 {[%emt 0:00:20]} 42. Rf2 {[%emt 0:01:35]} Ne4 {[%emt 0:00:36]} 43. Rh2 {[%emt 0:00:27]} Kd5 {[%emt 0:00:28]} 44. Rc2 {[%emt 0:01:58]} Rd1 {[%emt 0:04:38]} 45. a4 {[%emt 0:01:38]} Nc5 {[%emt 0:00:17]} 46. a5 {[%emt 0:01:45]} Rd4 {[%emt 0:01:11]} 47. b3 {[%emt 0:01:33]} Rb4 {[%emt 0:02:38]} 48. Rc3 {[%emt 0:03:30]} Rb5 {[%emt 0:00:14]} 49. Ka3 {[%emt 0:01:07]} Rxa5+ {[%emt 0:07:35]} 50. Kb4 {[%emt 0:00:28]} Nb7 {[%emt 0:00:25]} 51. Rc7 {[%emt 0:00:32]} Ra7 $1 {[%emt 0:00:03]} 52. Rd7+ {[%emt 0:04:56]} Kc6 {[%emt 0:00:15]} 53. Rd1 {[%emt 0:00:37]} Ra2 {[%emt 0:01:26]} 54. Rc1+ {[%emt 0:00:17]} Kb6 {[%emt 0:00:06]} 55. Rh1 {[%emt 0:00:16]} Rg2 {[%emt 0:00:07]} 56. Rh6+ {[%emt 0:00:11]} Kc7 {[%emt 0:00:07]} 57. Rh7+ {[%emt 0:00:22]} Kc6 {[%emt 0:00:08]} 58. Rh4 {[%emt 0:01:19]} Nd6 {[%emt 0:01:02]} 59. Rf4 {[%emt 0:00:06]} Ne8 {[%emt 0:00:36]} 60. Rc4+ {[%emt 0:00:27]} Kb6 {[%emt 0:00:08]} 61. Rh4 {[%emt 0:00:39]} Nc7 {[%emt 0:00:05]} 62. Rh6+ {[%emt 0:00:30]} Kb7 {[%emt 0:00:02]} 63. Rh4 {[%emt 0:01:10]} Rg3 {[%emt 0:00:09]} 64. Rd4 {[%emt 0:00:43]} Na6+ {[%emt 0:00:43]} 65. Kc4 {[%emt 0:00:27]} Nb8 {[%emt 0:00:32]} 66. Rh4 {[%emt 0:00:25]} Kb6 {[%emt 0:00:53]} 67. Rf4 {[%emt 0:00:41]} Nc6 {[%emt 0:00:24]} 68. b4 {[%emt 0:00:47]} Rg1 {[%emt 0:00:29]} 69. Rf6 {[%emt 0:00:38]} Rg4+ {[%emt 0:01:52]} 70. Kc3 {[%emt 0:00:59]} Kb5 {[%emt 0:00:32]} 71. Rf5+ {[%emt 0:00:10]} Ka4 $1 {[%emt 0:01:54]} 72. b5 {[%emt 0:01:15]} Na5 {[%emt 0:01:00]} 73. b6 {[%emt 0:01:29]} Rg6 {[%emt 0:01:50]} 74. Rf4+ {[%emt 0:06:28]} Kb5 {[%emt 0:01:21]} 75. Rb4+ {[%emt 0:01:35]} Kc6 {[%emt 0:01:01]} 76. Rb1 {[%emt 0:00:59]} Kb7 {[%emt 0:00:24]} 77. Kd4 {[%emt 0:00:25]} Rg5 {[%emt 0:00:25]} 78. Rb2 {[%emt 0:00:20]} Nc6+ {[%emt 0:00:08]} 79. Kc4 {[%emt 0:00:23]} Ne7 {[%emt 0:00:42]} 80. Kd4 {[%emt 0:00:19]} Nc8 {[%emt 0:00:15]} 81. Rb1 {[%emt 0:00:23]} Nxb6 {[%emt 0:00:16]} 82. Rb2 {[%emt 0:00:05]} Kc6 {[%emt 0:00:37]} 83. Rc2+ {[%emt 0:00:03]} Kd6 {[%emt 0:00:12]} 84. Rb2 {[%emt 0:00:12]} Rg4+ {[%emt 0:00:13]} 85. Kd3 {[%emt 0:00:13]} Kc5 {[%emt 0:02:14]} 86. Rc2+ {[%emt 0:00:19]} Kd5 {[%emt 0:00:22]} 87. Rh2 {[%emt 0:00:18]} Rg3+ {[%emt 0:00:10]} 88. Kc2 {[%emt 0:00:10]} Nc4 {[%emt 0:00:32]} 89. Rh5+ {[%emt 0:00:13]} Kd4 {[%emt 0:00:13]} 90. Rh4+ {[%emt 0:00:09] [#]} Kc5 $1 {[%emt 0:00:13]} 91. Rh2 {[%emt 0:00:16]} Kb4 {[%emt 0:00:24]} 92. Rf2 {[%emt 0:00:14]} Ra3 {[%emt 0:02:22]} 93. Rf8 {[%emt 0:00:39]} Rc3+ {[%emt 0:01:24]} 94. Kd1 {[%emt 0:00:24]} Rh3 {[%emt 0:01:07]} 95. Kc2 {[%emt 0:00:14]} Nb6 {[%emt 0:01:44]} 96. Rb8 {[%emt 0:00:13]} Kc5 {[%emt 0:00:38]} 97. Rg8 {[%emt 0:00:04]} Nd5 {[%emt 0:01:13]} 98. Kd2 {[%emt 0:00:17]} Nf4 {[%emt 0:01:23]} 99. Rd8 {[%emt 0:00:37]} Nd5 {[%emt 0:00:47]} ({Better is} 99... Rf3 $15) 100. Rg8 $1 {[%emt 0:00:36]} Nc3 {[%emt 0:03:18]} 101. Rg5+ {[%emt 0:01:07]} Kd4 {[%emt 0:00:55]} 102. Rg2 {[%emt 0:00:26]} Rh4 {[%emt 0:03:55]} 103. Kc2 {[%emt 0:00:19]} Kc4 {[%emt 0:00:07]} 104. Rd2 {[%emt 0:00:21]} Nd5 {[%emt 0:00:54]} 105. Rf2 {[%emt 0:00:18]} Rd4 {[%emt 0:01:05]} 106. Kb2 {[%emt 0:00:40]} Kb4 {[%emt 0:02:42]} 107. Rh2 {[%emt 0:00:18]} Ne3 {[%emt 0:02:39]} 108. Re2 {[%emt 0:00:32]} Rd3 {[%emt 0:00:03]} 109. Rh2 {[%emt 0:00:47]} Rc3 {[%emt 0:08:48]} 110. Rh8 {[%emt 0:00:39]} Rc2+ {[%emt 0:01:09]} 111. Kb1 {[%emt 0:00:13]} Rg2 {[%emt 0:00:18]} 112. Rh3 {[%emt 0:01:31]} Nd5 {[%emt 0:00:48]} 113. Kc1 {[%emt 0:01:20]} Nc3 {[%emt 0:00:17]} 114. Rh8 {[%emt 0:00:27]} Kb3 {[%emt 0:00:22]} 115. Rb8+ {[%emt 0:00:17]} Kc4 {[%emt 0:00:02]} 116. Rb4+ {[%emt 0:01:17]} Kd3 {[%emt 0:00:12]} 117. Rd4+ {[%emt 0:00:10]} Ke3 {[%emt 0:00:15]} 118. Rd3+ {[%emt 0:00:23]} Kxd3 {[%emt 0:00:07]} 1/2-1/2

[Event "Gibraltar Challengers A 2020"]
[Site "Caleta"]
[Date "2020.01.24"]
[Round "5.29"]
[White "Skutta, Bernd"]
[Black "Kaplan, Amiram"]
[Result "0-1"]
[ECO "A80"]
[WhiteElo "1998"]
[BlackElo "1880"]
[Annotator "NA RC"]
[PlyCount "60"]
[EventDate "2020.01.20"]
[EventType "swiss"]
[EventCountry "GGB"]
[SourceTitle "playchess.com"]
[Source "ChessBase"]
[SourceQuality "1"]
[TimeControl "6600+10"]

1. d4 {[%emt 0:00:00]} f5 {[%emt 0:00:43]} 2. Bg5 {[%emt 0:00:56]} c6 {[%emt 0:00:00]} 3. Nc3 {[%emt 0:00:27]} d5 {[%emt 0:01:15]} 4. Nf3 {[%emt 0:00:25]} g6 {[%emt 0:00:42]} 5. h4 {[%emt 0:01:13]} Nf6 {[%emt 0:01:53]} 6. h5 {[%emt 0:01:06]} Nxh5 {[%emt 0:02:09]} 7. Rxh5 {[%emt 0:00:38]} gxh5 {[%emt 0:00:06]} 8. Ne5 {[%emt 0:01:11]} Nd7 {[%emt 0:01:38]} 9. e4 {[%emt 0:00:55]} Nxe5 {[%emt 0:00:22]} 10. dxe5 {[%emt 0:00:19]} Qc7 {[%emt 0:07:04]} 11. Qxh5+ {[%emt 0:00:56]} Kd8 {[%emt 0:00:20]} 12. O-O-O {[%emt 0:01:12]} Qxe5 {[%emt 0:06:00] [#]} 13. Nxd5 $1 {[%emt 0:03:20]} Bd7 {[%emt 0:05:06]} 14. Bf4 {[%emt 0:04:13]} Qxe4 {[%emt 0:00:50]} 15. f3 {[%emt 0:01:29]} Qa4 {[%emt 0:05:25]} 16. Be5 {[%emt 0:02:11]} cxd5 {[%emt 0:05:40]} 17. Rxd5 {[%emt 0:17:05]} Rc8 {[%emt 0:07:44]} 18. b3 {[%emt 0:14:13]} Qc6 {[%emt 0:00:40]} 19. Bc4 {[%emt 0:06:09]} Bh6+ {[%emt 0:01:33]} 20. Kb2 {[%emt 0:02:51]} Rf8 {[%emt 0:01:58]} 21. g4 {[%emt 0:03:05]} fxg4 {[%emt 0:00:45]} 22. fxg4 {[%emt 0:00:34]} a6 {[%emt 0:01:34]} 23. g5 {[%emt 0:10:24]} Rf5 {[%emt 0:01:16]} ({Less strong is} 23... b5 24. gxh6 bxc4 25. Bc3 $19) 24. Qxh6 {[%emt 0:11:25]} Qxh6 {[%emt 0:00:40]} 25. gxh6 {[%emt 0:00:10]} e6 {[%emt 0:01:29]} 26. Ra5 {[%emt 0:02:41]} b5 {[%emt 0:05:25]} 27. Bd3 {[%emt 0:02:16]} Rxe5 {[%emt 0:02:36]} 28. Rxa6 {[%emt 0:00:13]} Rh5 {[%emt 0:00:33]} 29. Bxh7 {[%emt 0:00:34]} Rxh6 {[%emt 0:00:08]} 30. Bd3 {[%emt 0:00:33]} Rb8 $19 {[%emt 0:02:00]} 0-1

[Event "Gibraltar Challengers A 2020"]
[Site "Caleta"]
[Date "2020.01.24"]
[Round "5.30"]
[White "Perez Ruiz, Santiago"]
[Black "Hermes, Geoff R"]
[Result "1/2-1/2"]
[ECO "A41"]
[WhiteElo "1953"]
[BlackElo "1832"]
[Annotator "NA RC"]
[PlyCount "43"]
[EventDate "2020.01.20"]
[EventType "swiss"]
[EventCountry "GGB"]
[SourceTitle "playchess.com"]
[Source "ChessBase"]
[SourceQuality "1"]
[TimeControl "6600+10"]

{[%evp 14,43,-12,-1,33,44,36,32767,32767,32767,32767,32767,32767,32767,32767,33,32767,32767,32767,32767,32767,45,49,38,43,24,36,31,54,37,42,23]} 1. d4 {[%emt 0:10:50]} d6 {[%emt 0:00:01]} 2. c4 {[%emt 0:01:03]} e5 {[%emt 0:00:06]} 3. d5 {[%emt 0:02:33]} f5 {[%emt 0:00:06]} 4. g3 {[%emt 0:01:11]} Nf6 {[%emt 0:00:26]} 5. Bg2 {[%emt 0:00:27]} Be7 {[%emt 0:00:22]} 6. Nc3 {[%emt 0:00:18] A41: 1 d4 d6: Tartakower System and Modern Defence} O-O {[%emt 0:00:24]} 7. Nf3 {[%emt 0:01:44]} c6 {[%emt 0:12:05]} 8. O-O {[%emt 0:01:06]} e4 $146 {[%emt 0:05:10]} ({Predecessor:} 8... cxd5 9. Nxd5 Nc6 10. b3 Nxd5 11. Qxd5+ Kh8 12. Bb2 {0-1 (37) Ghaem Maghami,E (2560)-Sadorra,J (2574) Ashkhabad 2017}) 9. Nd4 {[%emt 0:03:34]} c5 {[%emt 0:02:07]} 10. Nc2 {[%emt 0:02:42]} Nbd7 {[%emt 0:00:49]} 11. b3 {[%emt 0:04:00]} Ne5 {[%emt 0:06:31]} 12. Bb2 {[%emt 0:05:09]} Bd7 {[%emt 0:02:07]} 13. Qd2 {[%emt 0:01:26]} Nfg4 {[%emt 0:20:25]} 14. f3 {[%emt 0:06:07]} exf3 {[%emt 0:08:13]} 15. exf3 {[%emt 0:02:06]} Nh6 {[%emt 0:02:18]} 16. f4 {[%emt 0:04:15]} Ng6 {[%emt 0:11:15]} 17. Rae1 {[%emt 0:03:54]} Bf6 {[%emt 0:01:00]} 18. Re2 {[%emt 0:02:00]} Re8 {[%emt 0:00:30]} 19. Rfe1 {[%emt 0:00:24]} Rxe2 {[%emt 0:03:22]} 20. Rxe2 {[%emt 0:02:53]} Qf8 {[%emt 0:00:43]} 21. Qe1 {[%emt 0:03:36]} Re8 {[%emt 0:00:27]} 22. Qd1 $11 {[%emt 0:06:09]} 1/2-1/2